Cogmind - Beta 16 --- EXPLORER MODE // 2025.10.26 @ 12:45:27 // Winter2019/RPGLIKE Player: RR-3MY Result: Destroyed by B-90 Cyclops with Nova Cannon Performance ------------- Evolutions (8) 4000 Regions Visited (19) 3800 Robots Destroyed (337) 1685 Value Destroyed (20268) 20268 Prototype IDs (234) 4680 Alien Tech Used (4) 800 Bonus (18078) 18078 TOTAL SCORE: 53311 Bonus ------- High Alert Combat Kills 313 Follower Combat Kills 1519 Destroyed Unchained 1000 Forged Quantum Companion 1000 Registered with UFD 300 Met Optimus in HQ 500 Met Data Miner 300 Used Data Conduit 3000 Met Warlord at Base 500 MAIN.C Attacked Warlord 500 Warlord Defense Kills 646 Found Hidden Lab 3000 Decrypted A0 Command 3000 Scanned by Researcher 500 Pursued by Intercept 2000 Cogmind --------- Core Integrity 0/1200 Matter 150/300 Energy 900/900 System Corruption 4% Temperature Cool (27) Movement Walking (167) Ox1 Location -2/Research Parts ------- > --- POWER (2) -------- Vortex Chain Reactor > --- PROPULSION (5) --- Improved VSS Leg Advanced VSS Leg Experimental Myomer Leg Experimental Myomer Leg > --- UTILITY (11) ----- Advanced Terrain Scanner Advanced Melee Analysis Suite Experimental Core Analyzer Improved Armor Integrity Analyzer Advanced Actuator Array Experimental Phase Shifter Advanced Force Field Quantum Router > --- WEAPON (5) ------- Gamma Bomb Array Molecular Scythe Molecular Scythe Quantum Companion Plasma Lance > --- INVENTORY (8) ---- Stasis Canceller Thermal Barrier Ghost Barrier Thunder Hammer PL-3XN's Ring of Power PL-3XN's Ring of Power Disassembled Obliterator Peak State ------------ > --- POWER ------------ Vortex Chain Reactor > --- PROPULSION ------- Improved VSS Leg Advanced VSS Leg Experimental Flexi-carbon Leg Experimental Myomer Leg Experimental Myomer Leg > --- UTILITY ---------- Advanced Terrain Scanner Advanced Melee Analysis Suite Experimental Core Analyzer Improved Armor Integrity Analyzer Advanced Actuator Array Advanced Reaction Control System Experimental Phase Shifter Medium Regenerative Plating Graphene Brace Advanced Force Field Quantum Router > --- WEAPON ----------- Thunder Hammer Molecular Scythe Molecular Scythe Quantum Companion Plasma Lance > --- INVENTORY -------- Stasis Canceller Thermal Barrier Ghost Barrier Gamma Bomb Array PL-3XN's Ring of Power PL-3XN's Ring of Power Disassembled Obliterator [Rating: 192] Favorites ----------- Power Light Fission Core Engine Ion Engine Power Core Light Fission Core Reactor Vortex Chain Reactor Propulsion Flexi-carbon Leg Leg Flexi-carbon Leg Hover Unit Experimental Antigrav System Utility Advanced Terrain Scanner Device Advanced Terrain Scanner Processor Advanced Melee Analysis Suite Hackware Quantum Router Protection Improved Medium Armor Plating Weapon Power Sword Energy Gun Spread Laser Energy Cannon Potential Cannon Ballistic Gun Assault Rifle Ballistic Cannon Flak Cannon Launcher Gamma Bomb Array Special Weapon Improved Remote Datajack Impact Weapon Thunder Hammer Slashing Weapon Power Sword Piercing Weapon Lance Build | -11 -10 -10 -8 -6 -6 -6 -6 -5 -5 -5 -5 -5 -4 -4 -4 -4 -3 -3 -2 ------- Run | Yrd Mat Sub Scr Fac Low Low Dat Pro Fac Upp Upp War Pro Fac Arm Lab Res Tes Res Slots Evolved 19 | 7 . . 2 6 . . . 1 2 . . . . . . 1 . . . Power 1 | . . . . 1 . . . . . . . . . . . . . . . Propulsion 4 | 3 . . . 1 . . . . . . . . . . . . . . . Utility 10 | 2 . . 2 4 . . . 1 . . . . . . . 1 . . . Weapon 4 | 2 . . . . . . . . 2 . . . . . . . . . . Parts Attached 96 | 9 . . 14 21 1 . 1 . 8 2 1 8 3 3 9 3 1 5 7 Power 6 | 1 . . 1 2 . . 1 . . . . 1 . . . . . . . Engine 1 | 1 . . . . . . . . . . . . . . . . . . . Core 3 | . . . 1 2 . . . . . . . . . . . . . . . Reactor 2 | . . . . . . . 1 . . . . 1 . . . . . . . Propulsion 18 | 2 . . 1 5 1 . . . 3 1 . 2 . 1 . . . . 2 Treads . | . . . . . . . . . . . . . . . . . . . . Leg 17 | 2 . . 1 5 1 . . . 3 1 . 2 . 1 . . . . 1 Wheel . | . . . . . . . . . . . . . . . . . . . . Hover 1 | . . . . . . . . . . . . . . . . . . . 1 Flight . | . . . . . . . . . . . . . . . . . . . . Utility 44 | 3 . . 5 13 . . . . 1 1 . 3 2 2 8 1 1 3 1 Device 27 | 3 . . 4 4 . . . . 1 1 . 1 2 2 7 . . 2 . Storage . | . . . . . . . . . . . . . . . . . . . . Processor 8 | . . . . 5 . . . . . . . 1 . . . . . 1 1 Hackware 6 | . . . . 3 . . . . . . . 1 . . 1 . 1 . . Protection 3 | . . . 1 1 . . . . . . . . . . . 1 . . . Artifact . | . . . . . . . . . . . . . . . . . . . . Weapon 28 | 3 . . 7 1 . . . . 4 . 1 2 1 . 1 2 . 2 4 Energy Gun 4 | . . . 2 . . . . . . . . 1 . . . . . 1 . Energy Cannon 3 | . . . . . . . . . . . . 1 . . . 2 . . . Ballistic Gun 7 | 3 . . 2 . . . . . . . 1 . . . . . . . 1 Ballistic Cannon 1 | . . . 1 . . . . . . . . . . . . . . . . Launcher 1 | . . . . . . . . . . . . . . . . . . . 1 Special Weapon 2 | . . . . 1 . . . . . . . . 1 . . . . . . Impact Weapon 1 | . . . . . . . . . 1 . . . . . . . . . . Slashing Weapon 7 | . . . 2 . . . . . 2 . . . . . 1 . . . 2 Piercing Weapon 2 | . . . . . . . . . 1 . . . . . . . . 1 . Special Melee Weapon . | . . . . . . . . . . . . . . . . . . . . Unidentified Prototypes 18 | . . . 1 . . . . . . . 1 4 . . 1 6 1 2 2 Corrupted Parts 1 | . . . . . . . . . . . . . 1 . . . . . . System Corruption 1 | . . . . . . . . . . . . . 1 . . . . . . Parts Lost 2 | . . . . . . . . . . . . . 1 . . . . 1 . Power . | . . . . . . . . . . . . . . . . . . . . Propulsion . | . . . . . . . . . . . . . . . . . . . . Utility 2 | . . . . . . . . . . . . . 1 . . . . 1 . Weapon . | . . . . . . . . . . . . . . . . . . . . Highest Loss Streak 1 | . . . . . . . . . . . . . 1 . . . . 1 . To Critical Strikes . | . . . . . . . . . . . . . . . . . . . . Average Backups 3 | . . . 1 3 4 4 5 4 3 4 5 5 4 4 5 2 3 3 4 Power . | . . . . . . . . . . . . . . . . . . . . Propulsion . | . . . . . . . . . . . . . . . . . . . . Utility 2 | . . . . 3 3 3 4 3 3 4 4 4 3 2 3 1 2 2 3 Weapon . | . . . . . 1 1 1 1 . . . . . . 1 1 1 1 1 Tool/Special . | . . . . . . . . . . . . . . . . . . . . Unused Backups 4 | . . . 2 . . . . . . . . 1 . . . . . . 1 Power . | . . . . . . . . . . . . . . . . . . . . Propulsion . | . . . . . . . . . . . . . . . . . . . . Utility 2 | . . . . . . . . . . . . 1 . . . . . . 1 Weapon 2 | . . . 2 . . . . . . . . . . . . . . . . Tool/Special . | . . . . . . . . . . . . . . . . . . . . Average Slot Usage (%) 94 | . 81 81 84 94 99 99 100 100 98 99 99 97 94 95 92 91 91 94 93 Core 4 | . . . 6 10 10 10 8 5 4 4 4 2 . . . . . . . Reactor 2 | . . . . . . . 1 5 4 4 4 4 4 4 4 4 4 4 4 Leg 23 | . 18 18 23 26 25 25 26 25 22 21 22 22 22 22 21 21 21 21 20 Device 25 | . 27 27 29 20 21 21 21 24 23 27 27 24 22 29 30 30 26 26 25 Processor 14 | . . . . 15 21 21 21 20 18 18 18 18 21 15 13 13 13 13 13 Protection 2 | . . . . 4 5 5 5 5 3 . . . . . . 1 4 3 3 Ballistic Gun 1 | . 27 27 8 . . . . . . . . . . . . . . . . Impact Weapon 3 | . . . . 2 5 5 5 5 4 4 3 3 4 4 4 3 4 4 3 Slashing Weapon 11 | . . . 6 12 10 10 10 10 13 13 13 13 13 13 15 15 13 13 12 Piercing Weapon 1 | . . . . . . . . . 2 4 4 4 3 4 . . . 3 4 Peak Build Rating 192 | 11 11 11 39 89 89 90 92 95 118 120 119 146 149 160 162 178 166 188 192 Average Rating 109 | 7 11 11 27 77 88 89 90 94 107 118 118 128 145 158 158 165 165 180 187 On Entrance 100 | . 11 11 11 39 89 89 90 92 95 114 119 119 142 149 160 162 165 165 186 Avg Prop Armor Cover (%) 19 | . . . 36 . . . . . . . . . . . . . 2 . . Naked Turns . | . . . . . . . . . . . . . . . . . . . . Heaviest Build 89 | 14 14 14 29 43 40 40 49 51 58 55 55 66 72 73 73 77 74 87 89 Greatest Support 111 | 20 20 20 37 91 91 91 91 91 101 101 101 111 111 111 106 106 106 106 106 Greatest Overweight (x) 2 | 2 . . . . . . . . 1 . . . . . 1 . . . 1 Average Overweight (x) . | . . . . . . . . . . . . . . . . . . . . Largest Inventory Capacity 8 | 2 2 2 2 6 6 6 6 6 6 6 6 6 6 7 7 7 8 8 8 Average Capacity 5 | 1 2 2 2 5 6 6 6 6 6 6 6 6 6 6 7 7 7 8 8 Most Carried 8 | . . 1 2 5 4 5 5 5 6 6 6 6 6 7 7 7 8 8 8 Average Carried 4 | . . . 1 3 4 4 5 4 3 5 6 5 5 5 6 6 7 7 8 Final Capacity 8 | 2 2 2 2 6 6 6 6 6 6 6 6 6 6 7 7 7 8 8 8 Final Carried 8 | . . 1 2 4 4 5 5 4 6 6 6 6 4 7 7 7 7 8 8 Scrap Suit Usage (%) 12 | . . . 26 52 . . . . . . . . . . . . . . . Parts Cannibalized 1 | . . . . 1 . . . . . . . . . . . . . . . Class Distribution -------------------- 64% | Hacker-Gladiator 15% | Wizard-Gladiator 8% | Hacker-Skirmisher 6% | Commander-Gladiator Dominant Class ---------------- Hacker-Skirmisher | -10/Materials Hacker-Skirmisher | -10/Subcaves Hacker-Skirmisher | -8/Scraptown Hacker-Gladiator | -6/Factory Hacker-Gladiator | -6/Lower Caves Commander-Gladiator | -6/Lower Caves Hacker-Gladiator | -6/Data Miner Hacker-Gladiator | -5/Proximity Caves Hacker-Gladiator | -5/Factory Hacker-Gladiator | -5/Upper Caves Hacker-Gladiator | -5/Upper Caves Hacker-Gladiator | -5/Warlord Hacker-Gladiator | -4/Proximity Caves Hacker-Gladiator | -4/Factory Hacker-Gladiator | -4/Armory Hacker-Gladiator | -4/Lab Wizard-Gladiator | -3/Research Wizard-Gladiator | -3/Testing Wizard-Gladiator | -2/Research Resources | -11 -10 -10 -8 -6 -6 -6 -6 -5 -5 -5 -5 -5 -4 -4 -4 -4 -3 -3 -2 ----------- Run | Yrd Mat Sub Scr Fac Low Low Dat Pro Fac Upp Upp War Pro Fac Arm Lab Res Tes Res Matter Collected 2216 | 217 . 148 106 346 20 15 18 15 180 77 84 100 72 100 345 . 201 132 40 Remotely . | . . . . . . . . . . . . . . . . . . . . Salvage Created 19361 | 62 . 68 98 1975 386 385 383 171 1610 252 528 333 1483 4197 2178 . 1150 1919 2183 Parts 842 | 7 . 8 . 114 19 14 14 10 87 16 14 13 61 152 83 . 45 111 74 Haulers Intercepted 14 | . . . . 4 . . . . 4 . . . . 3 . . . 1 2 Recyclers Shooed . | . . . . . . . . . . . . . . . . . . . . Parts Field Recycled . | . . . . . . . . . . . . . . . . . . . . Retrieved Matter . | . . . . . . . . . . . . . . . . . . . . Parts Self-Destructed . | . . . . . . . . . . . . . . . . . . . . Prevented . | . . . . . . . . . . . . . . . . . . . . Parts Restored . | . . . . . . . . . . . . . . . . . . . . Kills | -11 -10 -10 -8 -6 -6 -6 -6 -5 -5 -5 -5 -5 -4 -4 -4 -4 -3 -3 -2 ------- Run | Yrd Mat Sub Scr Fac Low Low Dat Pro Fac Upp Upp War Pro Fac Arm Lab Res Tes Res Combat Hostiles Destroyed 279 | . . 2 1 34 7 5 4 5 27 10 7 4 22 48 37 . 18 23 25 Melee 242 | . . . 1 31 6 5 3 4 25 9 6 4 19 42 33 . 15 18 21 Guns 2 | . . 2 . . . . . . . . . . . . . . . . . Cannons 11 | . . . . . . . . . . . . . . 3 1 . 1 3 3 Classes Destroyed 25 | 1 . 1 1 12 2 . . . 1 . . 3 . 1 1 . . 2 . Worker 9 | . . . . 2 . . . . 1 . . . . 5 . . 1 . . Builder 5 | . . . . 3 . . . . 1 . . . . 1 . . . . . Tunneler 3 | 3 . . . . . . . . . . . . . . . . . . . Hauler 14 | . . . . 4 . . . . 4 . . . . 3 . . . 1 2 Recycler 3 | . . . . . . . . . 1 . . . . 2 . . . . . Operator 1 | . . . . 1 . . . . . . . . . . . . . . . Watcher 19 | . . . . 3 . . . . 2 . . . . 7 2 . 3 1 1 Swarmer 49 | . . . . 6 5 . . 3 5 4 3 . 7 4 12 . . . . Grunt 69 | . . . . 12 . 2 . 1 10 3 . . 5 11 5 . 4 7 9 Brawler 11 | . . . . 1 . 1 . . 1 . 2 1 1 . 2 . . 1 1 Duelist 16 | . . . . 1 . 1 . . 2 . 1 . 4 1 6 . . . . Protector 1 | . . . . . . . . . . . . 1 . . . . . . . Researcher 1 | . . . . . . . . . . . . . . . . . . 1 . Sentry 32 | . . . . 8 . 1 . . 2 . 1 . 2 6 2 . 3 3 4 Demolisher 1 | . . . . . . . . . . . . . . . 1 . . . . Specialist 2 | . . . . . . . . . . . . 1 . 1 . . . . . Hunter 25 | . . . . 2 . . . . 4 2 . . 2 5 2 . 4 4 . Programmer 34 | . . . . 4 . . . . 2 1 . . . 12 3 . 6 5 1 Heavy 1 | . . . . . . . . . . . . . . 1 . . . . . Q-Series 2 | . . . . . . . . . . . . . . . . . . 1 1 Behemoth 5 | . . . . . 1 . . 1 1 . . . 1 . . . 1 . . Armor Guard 4 | . . . . . . . . . . . . . . . 4 . . . . Enhanced Grunt 4 | . . . . . . . 4 . . . . . . . . . . . . Tracker 10 | . . . . . . . . . 1 . . . . 3 . . . 2 4 Combat Programmer 10 | . . . . . . . . . . . . . . 4 . . . 2 4 Executioner 1 | . . . . . . . . . . . . 1 . . . . . . . Subdweller 2 | . . 2 . . . . . . . . . . . . . . . . . Scrapper 1 | . . . 1 . . . . . . . . . . . . . . . . Mutant 1 | . . . . . 1 . . . . . . . . . . . . . . Best Kill Streak 9 | 3 . 2 1 3 3 2 3 3 7 4 3 4 9 9 8 . 7 4 5 Combat Bots Only 9 | . . 2 1 3 3 2 3 3 6 4 3 4 9 6 8 . 4 3 5 Max Kills in Single Turn 2 | 1 . 1 1 1 1 1 1 1 1 1 2 1 1 2 2 . 1 1 1 Gunslinging . | . . . . . . . . . . . . . . . . . . . . Exploded . | . . . . . . . . . . . . . . . . . . . . Melee 2 | . . . 1 1 1 1 1 1 1 1 2 1 1 1 2 . 1 1 1 Uniques/NPCs Destroyed 1 | . . . . . . . . . . . . . . . . . . . 1 6S-H0T (-2/Research) Combat | -11 -10 -10 -8 -6 -6 -6 -6 -5 -5 -5 -5 -5 -4 -4 -4 -4 -3 -3 -2 -------- Run | Yrd Mat Sub Scr Fac Low Low Dat Pro Fac Upp Upp War Pro Fac Arm Lab Res Tes Res Hostile Shots Fired 2355 | . . 7 6 457 39 45 . 31 213 64 22 39 91 352 334 . 117 194 344 Missed 958 | . . . 1 193 12 11 . 15 60 15 6 24 20 187 146 . 55 84 129 Deflected 27 | . . . . . . . . . . . . . . 7 5 . 4 3 8 Hits 1397 | . . 7 5 264 27 34 . 16 153 49 16 15 71 165 188 . 62 110 215 Melee 94 | . . . . 2 . 15 . . 3 . 1 1 5 2 23 . . 6 36 Projectile 1303 | . . 7 5 262 27 19 . 16 150 49 15 14 66 163 165 . 62 104 179 AOE 5 | . . . . 1 . . . . . . . . . 2 1 . . . 1 Critical Strikes 88 | . . . 2 2 1 4 . . 3 . . . 5 13 10 . 1 15 32 Actively Blocked 38 | . . . . . . . . . . . . . . 1 7 . 1 15 14 Part Disruptions 4 | . . . . . . . . . . . . . . 1 . . 1 1 1 Damage Taken 10783 | . . 98 89 944 232 472 5 95 1144 225 135 343 676 1582 1229 . 482 749 2283 Core 8044 | . . 75 67 578 180 333 4 66 834 165 112 274 536 1268 961 . 344 573 1674 Absorbed by Shields 4247 | . . . . 405 28 29 4 45 348 102 49 125 66 586 489 . 173 639 1159 Redirected to Core 6438 | . . 75 56 487 138 300 4 60 679 149 66 212 428 932 813 . 258 415 1366 Ignored by Resistances 15545 | . . 59 52 1764 328 420 13 190 1698 443 204 214 862 2034 2638 . 620 1085 2921 Regen/Repaired (Parts) 550 | . . . . 129 . 18 . . 29 . . . . . 12 . 58 176 128 Core Remaining (%) 88 | 100 . . 88 . . . . 93 . . . . 65 . . 91 . 91 . Volleys Fired 14 | 5 . 4 . 2 . . . . . . . . 1 . 1 . . . 1 Largest 3 | 3 . 3 . 1 . . . . . . . . 1 . 1 . . . 1 Hottest 80 | 60 . 60 . . . . . . . . . . 7 . 7 . . . 80 Shots Fired 32 | 15 . 12 . 2 . . . . . . . . 1 . 1 . . . 1 Gun 27 | 15 . 12 . . . . . . . . . . . . . . . . . Cannon . | . . . . . . . . . . . . . . . . . . . . Launcher 1 | . . . . . . . . . . . . . . . . . . . 1 Special 4 | . . . . 2 . . . . . . . . 1 . 1 . . . . Kinetic 27 | 15 . 12 . . . . . . . . . . . . . . . . . Thermal . | . . . . . . . . . . . . . . . . . . . . Explosive . | . . . . . . . . . . . . . . . . . . . . Electromagnetic 1 | . . . . . . . . . . . . . . . . . . . 1 Robot Hit Streak 20 | 3 . 14 . 16 . . . . . . . . 17 . 18 . . . 20 Robot Miss Streak 1 | 1 . . . . . . . . . . . . . . . . . . 1 Penetration Max . | . . . . . . . . . . . . . . . . . . . . Secondary Targets . | . . . . . . . . . . . . . . . . . . . . Autonomous 34 | . . . . . . . . . . . . . . 12 5 . 8 4 5 Shots Hit Robots 898 | 8 . 11 1 111 21 20 10 13 92 29 22 9 55 166 117 . 46 76 91 Core Hits 409 | 3 . 4 1 46 9 6 5 6 43 11 7 5 30 75 52 . 26 36 44 Critical Kills . | . . . . . . . . . . . . . . . . . . . . Critical Parts Destroyed 13 | 1 . . . 4 1 . 1 1 3 1 . . 1 . . . . . . Critical Strikes 65 | 1 . . . 13 5 . 1 1 11 2 2 . 3 8 9 . 4 . 5 Destroy 1 | 1 . . . . . . . . . . . . . . . . . . . Smash 13 | . . . . 5 1 . 1 1 3 1 . . 1 . . . . . . Sever 12 | . . . . 2 2 . . . 3 . 2 . 1 . 1 . . . 1 Impale 3 | . . . . . . . . . 1 1 . . 1 . . . . . . Melee Attacks 1061 | . . . 1 144 26 22 10 20 122 38 29 13 66 173 133 6 52 96 110 Impact 57 | . . . . 13 3 3 1 5 12 4 4 . 10 . 1 . . . 1 Slashing 974 | . . . 1 131 23 19 9 15 95 33 22 11 47 173 132 6 52 96 109 Piercing 30 | . . . . . . . . . 15 1 3 2 9 . . . . . . Sneak Attacks 55 | . . . . 9 . . 2 . 10 . . . 5 14 5 . 1 5 4 Combat Hostiles 5 | . . . . . . . . . . . . . . 3 . . . . 2 Follow-up Attacks 150 | . . . . 27 6 5 2 5 35 10 10 3 23 8 12 . 1 1 2 Damage Inflicted 54422 | 110 . 138 34 4971 949 792 471 608 4402 1298 822 402 2532 12544 7896 . 3891 5936 6626 Guns 248 | 110 . 138 . . . . . . . . . . . . . . . . . Cannons 3172 | . . . . . . . . . . . . . . 1088 482 . 722 388 492 Explosions 41 | . . . . . . . . . . . . . . . . . . . 41 Melee 50961 | . . . 34 4971 949 792 471 608 4402 1298 822 402 2532 11456 7414 . 3169 5548 6093 Ramming . | . . . . . . . . . . . . . . . . . . . . Kinetic 248 | 110 . 138 . . . . . . . . . . . . . . . . . Thermal . | . . . . . . . . . . . . . . . . . . . . Explosive . | . . . . . . . . . . . . . . . . . . . . Electromagnetic 41 | . . . . . . . . . . . . . . . . . . . 41 Impact 2106 | . . . . 457 98 129 50 147 322 149 170 . 439 . 75 . . . 70 Slashing 48166 | . . . 34 4514 851 663 421 461 3782 1103 598 324 1880 11456 7339 . 3169 5548 6023 Piercing 689 | . . . . . . . . . 298 46 54 78 213 . . . . . . Phasic 3172 | . . . . . . . . . . . . . . 1088 482 . 722 388 492 Highest Corruption 7 | . . . . 1 1 1 1 1 4 4 4 4 1 7 7 7 3 7 4 Average Corruption 3 | . . . . 1 1 1 1 1 2 4 4 4 1 4 7 7 2 4 2 Corruption Purged . | . . . . . . . . . . . . . . . . . . . . Corruption Blocked . | . . . . . . . . . . . . . . . . . . . . Effects 193 | . . . . 10 4 7 1 7 13 19 22 . . 24 38 11 2 29 6 Message Errors 54 | . . . . 2 3 2 . 1 4 2 5 . . 4 12 3 1 13 2 Matter Fused 44 | . . . . 2 . 2 . 1 4 6 7 . . 6 7 5 . 4 . Heat Flow Errors 28 | . . . . 5 . 1 . . 2 2 3 . . 4 7 . . 3 1 Energy Discharges 26 | . . . . 1 . . 1 2 3 3 4 . . 4 4 . . 4 . Data Loss (minor) 23 | . . . . . . 2 . 3 . 1 3 . . 5 3 2 . 3 1 Data Loss (major) 15 | . . . . . . . . . . 5 . . . 1 4 1 1 1 2 Alerts 3 | . . . . . 1 . . . . . . . . . 1 . . 1 . Overload Shots . | . . . . . . . . . . . . . . . . . . . . Overflow Damage 3812 | . . . . 424 59 15 50 103 430 155 49 . 390 1058 200 . 419 268 192 Projectiles 288 | . . . . . . . . . . . . . 22 101 87 . 41 . 37 Explosions . | . . . . . . . . . . . . . . . . . . . . Melee 3524 | . . . . 424 59 15 50 103 430 155 49 . 368 957 113 . 378 268 155 Knockbacks 8 | . . . . 2 . . . 1 1 2 . . 2 . . . . . . Impact 7 | . . . . 2 . . . 1 1 2 . . 1 . . . . . . Kinetic . | . . . . . . . . . . . . . . . . . . . . Secondary 1 | . . . . . . . . . . . . . 1 . . . . . . Self-Inflicted Damage 13 | . . . . . . . . . . . . . . . . . . . 13 Shots 3 | . . . . . . . . . . . . . . . . . . . 3 Rammed . | . . . . . . . . . . . . . . . . . . . . Targets Rammed . | . . . . . . . . . . . . . . . . . . . . Kicked . | . . . . . . . . . . . . . . . . . . . . Crushed . | . . . . . . . . . . . . . . . . . . . . Highest Temperature 248 | . . . 59 246 . 77 . . 243 239 215 . . 220 248 . . 178 212 Average Temperature 83 | . . . 42 80 . 56 . . 111 124 92 . . 85 105 . . 100 115 Received Heat Transfer 2191 | . . 12 116 483 66 157 . 25 149 36 30 58 159 245 442 . 56 34 123 Effects 1 | . . . . 1 . . . . . . . . . . . . . . . Interference 1 | . . . . 1 . . . . . . . . . . . . . . . Siege Activations . | . . . . . . . . . . . . . . . . . . . . Martial Activations . | . . . . . . . . . . . . . . . . . . . . Shielding Activations . | . . . . . . . . . . . . . . . . . . . . Robots Disrupted 10 | . . . . . . . . . . 1 . . 2 2 2 . . 1 2 Combat Hostiles 10 | . . . . . . . . . . 1 . . 2 2 2 . . 1 2 Robots Corrupted 10 | . . . . 3 1 . . 1 2 1 . . 2 . . . . . . Combat Hostiles 10 | . . . . 3 1 . . 1 2 1 . . 2 . . . . . . Parts Fried 7 | . . . . . 3 . 1 . 1 1 . . 1 . . . . . . Impact Corruptions 26 | . . . . 7 1 . 1 2 4 3 1 . 7 . . . . . . Robots Melted . | . . . . . . . . . . . . . . . . . . . . Combat Hostiles . | . . . . . . . . . . . . . . . . . . . . Parts Melted 7 | . . . 1 2 . 1 1 . 2 . . . . . . . . . . Heat Transferred . | . . . . . . . . . . . . . . . . . . . . Parts Sabotaged 2 | . . . . . . . . . . . . . . . 2 . . . . Parts Stolen . | . . . . . . . . . . . . . . . . . . . . Parts Stripped 125 | . . . . . . . . . . . . . . 45 33 . 18 21 8 Power Chain Reactions . | . . . . . . . . . . . . . . . . . . . . Alert | -11 -10 -10 -8 -6 -6 -6 -6 -5 -5 -5 -5 -5 -4 -4 -4 -4 -3 -3 -2 ------- Run | Yrd Mat Sub Scr Fac Low Low Dat Pro Fac Upp Upp War Pro Fac Arm Lab Res Tes Res Maximum Alert Level 2 | . . . . . . . . . 1 . . . . 2 2 . 1 . 1 Low Security (%) 78 | 100 100 . . 100 . . . . 78 . . . . 58 . . 77 100 99 Level 1 17 | . . . . . . . . . 21 . . . . 28 81 . 22 . . Level 2 3 | . . . . . . . . . . . . . . 12 18 . . . . Level 3 . | . . . . . . . . . . . . . . . . . . . . Level 4 . | . . . . . . . . . . . . . . . . . . . . Level 5 . | . . . . . . . . . . . . . . . . . . . . High Security . | . . . . . . . . . . . . . . . . . . . . Max Security . | . . . . . . . . . . . . . . . . . . . . Peak Influence 640 | 10 . . . 110 . . . . 266 . . . . 640 529 . 319 128 203 Initial 225 | . . . . . . . . . . . . . . 26 225 . . 128 . Average 116 | . . . . 17 . . . . 160 . . . . 216 364 . 146 46 70 Influence Increases 9690 | 15 . . . 1481 164 313 . 125 1167 290 167 285 508 1725 1271 . 764 680 735 Destroy 0b10 Robot/C 6280 | . . . . 880 120 240 . 100 640 260 160 240 440 980 880 . 380 480 480 Destroy 0b10 Robot/NC 320 | 15 . . . 70 5 . . . 55 . . 15 . 90 10 . 30 15 15 Destroy Leader 1398 | . . . . 286 30 10 . 20 154 30 . . 50 288 142 . 108 114 166 Allied During Kill 252 | . . . . 76 9 48 . 5 17 . 7 30 18 19 16 . 6 1 . Trap Triggered on 0b10 40 | . . . . . . . . . . . . . . 30 . . . 10 . Successful Hack 248 | . . . . 112 . . . . 34 . . . . 14 62 . . 12 14 Select Force Hacks 30 | . . . . . . . . . 30 . . . . . . . . . . Disable Machine 92 | . . . . 24 . . . . 12 . . . . . 28 . . 28 . Anti-Garrison Action 600 | . . . . . . . . . 200 . . . . 200 . . 200 . . Destroy Structure 190 | . . . . 18 . . . . 10 . . . . 14 58 . 10 20 60 Partial Spotted 15 | . . . . 15 . . . . . . . . . . . . . . . Lose Combat Pursuer 225 | . . . . . . 15 . . 15 . . . . 90 75 . 30 . . Influence Decreases 9547 | 15 . . . 1481 164 313 . 125 1020 437 167 60 677 1156 1445 451 460 984 592 Entered New Map 1359 | . . . . . . . . . . 77 . . 225 30 400 451 . 176 . Time Decay 7755 | 15 . . . 1478 164 253 . 125 930 340 147 30 442 1046 945 . 450 798 592 Lost Part 20 | . . . . . . . . . . . . . 10 . . . . 10 . Lost Ally 413 | . . . . 3 . 60 . . 90 20 20 30 . 80 100 . 10 . . Squads Dispatched 64 | . . . . 17 . . . . 7 . . . . 12 8 . 4 8 8 Investigation 20 | . . . . 7 . . . . 3 . . . . 4 1 . 2 1 2 Extermination 23 | . . . . 7 . . . . 1 . . . . 3 4 . 2 3 3 Reinforcement 13 | . . . . 3 . . . . 2 . . . . 2 2 . . 3 1 Assault 2 | . . . . . . . . . . . . . . 1 1 . . . . Garrison . | . . . . . . . . . . . . . . . . . . . . Intercept 6 | . . . . . . . . . 1 . . . . 2 . . . 1 2 Searches Triggered . | . . . . . . . . . . . . . . . . . . . . Unchained Authorized 2 | . . . . . . . . . . . . . . . . . . 1 1 Construction Impeded . | . . . . . . . . . . . . . . . . . . . . Haulers Reinforced 2 | . . . . 1 . . . . . . . . . . . . . 1 . Active Scanning Responses . | . . . . . . . . . . . . . . . . . . . . Cargo Convoy Interrupts 1 | . . . . . . . . . 1 . . . . . . . . . . Stealth | -11 -10 -10 -8 -6 -6 -6 -6 -5 -5 -5 -5 -5 -4 -4 -4 -4 -3 -3 -2 --------- Run | Yrd Mat Sub Scr Fac Low Low Dat Pro Fac Upp Upp War Pro Fac Arm Lab Res Tes Res Distress Signals 10 | . . . . . . . . . 3 . . . . 3 1 . 1 1 1 Communications Jammed 64 | . . . . . . . . . 64 . . . . . . . . . . Distress Signals 64 | . . . . . . . . . 64 . . . . . . . . . . Times Spotted 408 | . . 2 7 55 7 12 4 5 41 14 7 22 22 64 55 . 27 29 35 Peak Tracking Total 16 | . . 2 5 3 3 8 4 3 4 4 3 16 4 8 8 . 4 4 6 Tactical Retreats 13 | . . . . . . 1 . . 1 . . . . 5 4 . 2 . . Traps | -11 -10 -10 -8 -6 -6 -6 -6 -5 -5 -5 -5 -5 -4 -4 -4 -4 -3 -3 -2 ------- Run | Yrd Mat Sub Scr Fac Low Low Dat Pro Fac Upp Upp War Pro Fac Arm Lab Res Tes Res Traps Triggered 15 | . . . . . . . . . 5 . . . . 3 6 . . . 1 Indirectly 1 | . . . . . . . . . . . . . . . . . . . 1 Trap Hack Attempts . | . . . . . . . . . . . . . . . . . . . . Triggered . | . . . . . . . . . . . . . . . . . . . . Disarmed . | . . . . . . . . . . . . . . . . . . . . Reprogrammed 14 | . . . . . . . . . . . . . . 4 . . . 10 . Reused 4 | . . . . . . . . . . . . . . 3 . . . 1 . Traps Extracted . | . . . . . . . . . . . . . . . . . . . . Installed . | . . . . . . . . . . . . . . . . . . . . Triggered 4 | . . . . . . . . . . . . . . 3 . . . 1 . Machines | -11 -10 -10 -8 -6 -6 -6 -6 -5 -5 -5 -5 -5 -4 -4 -4 -4 -3 -3 -2 ---------- Run | Yrd Mat Sub Scr Fac Low Low Dat Pro Fac Upp Upp War Pro Fac Arm Lab Res Tes Res Machines Disabled 27 | . . . . 6 1 . . . 3 1 1 . . . 7 1 . 7 . Max in Single Turn 1 | . . . . 1 1 . . . 1 . 1 . . . 1 1 . 1 . Garrison Access 8 | . . . . 2 . . . . 2 . . . . 2 . . 1 1 . Machines Repaired . | . . . . . . . . . . . . . . . . . . . . Machines Dismantled . | . . . . . . . . . . . . . . . . . . . . Machines Sabotaged . | . . . . . . . . . . . . . . . . . . . . Overloaded Fab Kills . | . . . . . . . . . . . . . . . . . . . . Hacking | -11 -10 -10 -8 -6 -6 -6 -6 -5 -5 -5 -5 -5 -4 -4 -4 -4 -3 -3 -2 --------- Run | Yrd Mat Sub Scr Fac Low Low Dat Pro Fac Upp Upp War Pro Fac Arm Lab Res Tes Res Machines Accessed 103 | . . 1 4 33 2 . 4 . 10 1 1 4 . 10 12 1 6 8 6 Terminals 40 | . . . . 15 1 . . . 5 1 . . . 3 5 . 2 4 4 Fabricators 16 | . . . . 5 . . . . 1 . . . . . 5 . 2 2 1 Repair Stations 4 | . . . . 2 . . . . . . . . . 1 1 . . . . Recycling Units 14 | . . . . 7 . . . . 1 . . . . 3 1 . 1 . 1 Scanalyzers 5 | . . . . 2 . . . . 1 . . . . 1 . . . 1 . Garrison Access 8 | . . . . 2 . . . . 2 . . . . 2 . . 1 1 . Total Hacks 450 | . . 4 21 151 5 . 19 . 39 4 1 8 . 29 31 20 23 43 52 Successful 347 | . . 4 21 119 5 . 19 . 27 4 1 8 . 16 21 20 13 32 37 Failed 103 | . . . . 32 . . . . 12 . . . . 13 10 . 10 11 15 Catastrophic 6 | . . . . . . . . . . . . . . 1 . . 2 2 1 Database Lockouts . | . . . . . . . . . . . . . . . . . . . . Manual 208 | . . . . 80 . . . . 24 . . 1 . 12 18 . 16 20 37 Terminals 216 | . . . . 86 4 . . . 24 4 . . . 10 11 . 7 29 41 Fabricators 73 | . . . . 28 . . . . 5 . . . . . 13 . 11 8 8 Repair Stations 12 | . . . . 5 . . . . . . . . . 3 4 . . . . Recycling Units 39 | . . . . 17 . . . . 5 . . . . 9 3 . 2 . 3 Scanalyzers 22 | . . . . 12 . . . . 2 . . . . 4 . . . 4 . Garrison Access 14 | . . . . 3 . . . . 3 . . . . 3 . . 3 2 . Terminal Hacks 169 | . . 4 21 39 5 . 19 . 7 4 1 8 . 2 2 20 2 9 26 Record 68 | . . 4 19 . 4 . 5 . . 4 1 6 . . . 20 . 2 3 Part Schematic 13 | . . . . 3 . . 8 . 1 . . . . . . . . 1 . Robot Schematic 5 | . . . . 2 . . 3 . . . . . . . . . . . . Robot Analysis 11 | . . . . 11 . . . . . . . . . . . . . . . Prototype ID Bank 23 | . . . . 2 . . 3 . . . . . . . . . 1 1 16 Open Door 6 | . . . 1 . 1 . . . . . . 2 . . 2 . . . . Open DSF 3 | . . . . 1 . . . . . . . . . . . . 1 . 1 Branch Access Points 3 | . . . . 1 . . . . 1 . . . . . . . . . 1 Machine Index 1 | . . . . 1 . . . . . . . . . . . . . . . Alert Level 6 | . . . . 4 . . . . 1 . . . . . . . . 1 . Locate Traps 4 | . . . . 4 . . . . . . . . . . . . . . . Reprogram Traps 3 | . . . . . . . . . . . . . . 1 . . . 2 . Dispatch Records 4 | . . . . 2 . . . . 1 . . . . . . . . 1 . Maintenance Status 1 | . . . . . . . . . . . . . . . . . . 1 . Transport Status 2 | . . . . 1 . . . . . . . . . 1 . . . . . Investigation Status 1 | . . . . 1 . . . . . . . . . . . . . . . Extermination Status 1 | . . . . . . . . . . . . . . . . . . . 1 Recall Investigation 2 | . . . . . . . . . 1 . . . . . . . . . 1 Recall Extermination 3 | . . . . 1 . . . . . . . . . . . . . . 2 Recall Reinforcements 3 | . . . . 2 . . . . 1 . . . . . . . . . . Hauler Manifests 2 | . . . . 1 . . . . 1 . . . . . . . . . . Registered Components 2 | . . . . 1 . . . . . . . . . . . . . . 1 Zone Layout 1 | . . . . 1 . . . . . . . . . . . . . . . Proto ID Catalog 1 | . . . 1 . . . . . . . . . . . . . . . . Fabricator Hacks 30 | . . . . 15 . . . . 3 . . . . . 4 . 2 4 2 Network Status 6 | . . . . 2 . . . . 1 . . . . . 1 . 1 1 . Load Schematic 11 | . . . . 6 . . . . 1 . . . . . 2 . . 1 1 Build 13 | . . . . 7 . . . . 1 . . . . . 1 . 1 2 1 Repair Station Hacks 6 | . . . . 2 . . . . . . . . . 1 3 . . . . Scan Component 4 | . . . . 1 . . . . . . . . . 1 2 . . . . Repair 2 | . . . . 1 . . . . . . . . . . 1 . . . . Recycling Unit Hacks 15 | . . . . 9 . . . . 2 . . . . 1 1 . 1 . 1 Report Inventory 8 | . . . . 7 . . . . 1 . . . . . . . . . . Retrieve Components 7 | . . . . 2 . . . . 1 . . . . 1 1 . 1 . 1 Scanalyzer 18 | . . . . 12 . . . . 1 . . . . 3 . . . 2 . Insert Component 2 | . . . . 1 . . . . . . . . . . . . . 1 . Analyze 1 | . . . . 1 . . . . . . . . . . . . . . . Retrieve Study 15 | . . . . 10 . . . . 1 . . . . 3 . . . 1 . Garrison Access Hacks 5 | . . . . 2 . . . . 1 . . . . 1 . . . 1 . Seal Access 5 | . . . . 2 . . . . 1 . . . . 1 . . . 1 . Unauthorized Hacks 104 | . . . . 40 . . . . 13 . . . . 8 11 . 8 16 8 Terminals 59 | . . . . 22 . . . . 10 . . . . 5 5 . 2 13 2 Track 3 | . . . . 1 . . . . . . . . . . . . . 2 . Assimilate 3 | . . . . 3 . . . . . . . . . . . . . . . Botnet 23 | . . . . 8 . . . . 4 . . . . 2 3 . 1 4 1 Disrupt 4 | . . . . 1 . . . . . . . . . . 1 . . 2 . Operators 3 | . . . . 1 . . . . 1 . . . . . . . . 1 . Skim 23 | . . . . 8 . . . . 5 . . . . 3 1 . 1 4 1 Fabricators 27 | . . . . 10 . . . . . . . . . . 5 . 4 3 5 Report 2 | . . . . 1 . . . . . . . . . . . . . . 1 Prioritize 4 | . . . . 3 . . . . . . . . . . . . . . 1 Liberate 6 | . . . . 1 . . . . . . . . . . 2 . 1 1 1 Fabnet 10 | . . . . 3 . . . . . . . . . . 3 . 2 1 1 Haulers 5 | . . . . 2 . . . . . . . . . . . . 1 1 1 Repair Stations 1 | . . . . 1 . . . . . . . . . . . . . . . Mechanics 1 | . . . . 1 . . . . . . . . . . . . . . . Recycling Units 13 | . . . . 7 . . . . 1 . . . . 2 1 . 1 . 1 Fedlink 13 | . . . . 7 . . . . 1 . . . . 2 1 . 1 . 1 Scanalyzers 1 | . . . . . . . . . 1 . . . . . . . . . . Extract 1 | . . . . . . . . . 1 . . . . . . . . . . Garrison Access 3 | . . . . . . . . . 1 . . . . 1 . . 1 . . Jam 3 | . . . . . . . . . 1 . . . . 1 . . 1 . . Data Cores Recovered . | . . . . . . . . . . . . . . . . . . . . Used . | . . . . . . . . . . . . . . . . . . . . Hacking Detections 66 | . . . . 25 1 . . . 6 1 . . . 7 10 . 5 7 4 Full Trace Events 3 | . . . . . 1 . . . . . . . . 1 . . . . 1 Feedback Events . | . . . . . . . . . . . . . . . . . . . . Feedback Blocked . | . . . . . . . . . . . . . . . . . . . . Robot Schematics Acquired 6 | . . . . 2 . . 3 . . . . . . . . . . 1 . Robots Built 8 | . . . . 7 . . . . . . . . . . . . 1 . . Authchips 1 | . . . . 1 . . . . . . . . . . . . . . . Time 387 | . . . . 325 . . . . . . . . . . . . 62 . . Total Robot Build Rating 36 | . . . . 29 . . . . . . . . . . . . 7 . . Part Schematics Acquired 18 | . . . . 4 . . 8 . 2 . . . . . . . . 4 . Parts Built 13 | . . . . 5 . . . . 1 . . . . . 2 . . 3 2 Authchips 3 | . . . . 2 . . . . . . . . . . 1 . . . . Time 553 | . . . . 167 . . . . 84 . . . . . 39 . . 216 47 Total Part Build Rating 72 | . . . . 21 . . . . 6 . . . . . 14 . . 21 10 Part Studies Acquired 14 | . . . . 10 . . . . . . . . . 3 . . . 1 . Parts Repaired 2 | . . . . 1 . . . . . . . . . . 1 . . . . Time 41 | . . . . 19 . . . . . . . . . . 22 . . . . Parts Recycled . | . . . . . . . . . . . . . . . . . . . . Recycled Matter . | . . . . . . . . . . . . . . . . . . . . Retrieved Matter . | . . . . . . . . . . . . . . . . . . . . Retrieved Components 39 | . . . . 16 . . . . 10 . . . . 2 1 . 1 . 9 Parts Scanalyzed 1 | . . . . 1 . . . . . . . . . . . . . . . Part Schematics Acquired 1 | . . . . 1 . . . . . . . . . . . . . . . Parts Damaged . | . . . . . . . . . . . . . . . . . . . . Bothacking | -11 -10 -10 -8 -6 -6 -6 -6 -5 -5 -5 -5 -5 -4 -4 -4 -4 -3 -3 -2 ------------ Run | Yrd Mat Sub Scr Fac Low Low Dat Pro Fac Upp Upp War Pro Fac Arm Lab Res Tes Res Used RIF Installer . | . . . . . . . . . . . . . . . . . . . . Robots Hacked 18 | . . . . . . . . . 3 . 3 5 . 1 1 . 3 2 . Non-combat . | . . . . . . . . . . . . . . . . . . . . Combat 17 | . . . . . . . . . 3 . 3 5 . 1 . . 3 2 . Robot Hacks Applied . | . . . . . . . . . . . . . . . . . . . . Manual 1 | . . . . . . . . . . . . . . . 1 . . . . Relay Couplers Released 3 | . . . . . . . . . 2 . . . . . . . . 1 . Machine Destruction 1 | . . . . . . . . . . . . . . . . . . 1 . Programmers 2 | . . . . . . . . . 2 . . . . . . . . . . Fabnet Peak Effective % 12 | . . . . . . . . 6 6 6 6 6 2 2 2 2 9 9 12 Autooverrided 17 | . . . . . . . . . 3 . 3 5 . 1 . . 3 2 . Robots Rewired 23 | . . . . . 4 2 . . . 1 2 5 2 2 5 . . . . Allies Hacked 2 | . . . . 1 . . . . . . . . . . 1 . . . . Hacks Repelled . | . . . . . . . . . . . . . . . . . . . . Allies | -11 -10 -10 -8 -6 -6 -6 -6 -5 -5 -5 -5 -5 -4 -4 -4 -4 -3 -3 -2 -------- Run | Yrd Mat Sub Scr Fac Low Low Dat Pro Fac Upp Upp War Pro Fac Arm Lab Res Tes Res Total Allies 52 | . . . . 10 4 2 . . 3 1 5 10 2 3 6 . 4 2 . Largest Group 11 | . . . . 7 10 11 9 5 5 1 3 9 2 2 4 . 2 1 . Highest-Rated Group 399 | . . . . 232 309 330 272 151 151 64 108 399 95 95 184 . 164 82 . Highest-Rated Ally 116 | . . . . 49 49 49 49 49 49 64 49 64 48 56 116 . 82 82 . Total Orders 10 | . . . . 1 1 6 . . 2 . . . . . . . . . . STAY 2 | . . . . . . 2 . . . . . . . . . . . . . ROAM 1 | . . . . . . 1 . . . . . . . . . . . . . FOLLOW 1 | . . . . . . 1 . . . . . . . . . . . . . AID 6 | . . . . 1 1 2 . . 2 . . . . . . . . . . Ally Attacks 439 | . . . . 78 1 64 51 7 43 6 16 82 6 16 42 . 23 4 . Total Damage 11240 | . . . . 2347 28 962 913 70 1013 267 329 3020 132 484 1194 . 352 129 . Kills 53 | . . . . 11 . 7 . . 9 3 1 11 . 1 7 . 3 . . Allies Corrupted 5 | . . . . 1 . 1 1 . . . . 1 . 1 . . . . . Allies Melted . | . . . . . . . . . . . . . . . . . . . . Intel | -11 -10 -10 -8 -6 -6 -6 -6 -5 -5 -5 -5 -5 -4 -4 -4 -4 -3 -3 -2 ------- Run | Yrd Mat Sub Scr Fac Low Low Dat Pro Fac Upp Upp War Pro Fac Arm Lab Res Tes Res Active Infowar (turns) 20488 | 93 29 279 2486 3784 941 938 180 653 1286 952 1103 712 1086 1411 1265 397 605 1319 969 Optics 2 | . . . . . . . . . . . . . . . . . . . 2 Sensors 15020 | 93 29 279 1597 3522 941 938 180 653 1286 952 1103 712 1085 1411 239 . . . . Terrain 20304 | 13 29 279 2485 3681 941 938 180 653 1286 952 1103 712 1086 1411 1265 397 605 1319 969 Seismic 2105 | 34 29 279 1763 . . . . . . . . . . . . . . . . Jamming 10111 | . . . 3 3401 941 938 180 653 1286 952 1103 413 241 . . . . . . Robot Analysis Total 154 | . . . . 11 . . 143 . . . . . . . . . . . . Derelict Logs Recovered 12 | . . 1 1 . 2 1 . 1 . 2 3 . 1 . . . . . . Drone Launches . | . . . . . . . . . . . . . . . . . . . . Drone Recoveries . | . . . . . . . . . . . . . . . . . . . . Exploration | -11 -10 -10 -8 -6 -6 -6 -6 -5 -5 -5 -5 -5 -4 -4 -4 -4 -3 -3 -2 ------------- Run | Yrd Mat Sub Scr Fac Low Low Dat Pro Fac Upp Upp War Pro Fac Arm Lab Res Tes Res Turns Passed 20490 | 95 29 279 2486 3784 941 938 180 653 1286 952 1103 712 1086 1411 1265 397 605 1319 969 Spaces Moved 16121 | 49 19 199 2027 2858 742 703 116 614 864 919 1022 650 841 1074 936 294 471 1045 678 Core 85 | 7 . . 78 . . . . . . . . . . . . . . . . Treads . | . . . . . . . . . . . . . . . . . . . . Legs 16036 | 42 19 199 1949 2858 742 703 116 614 864 919 1022 650 841 1074 936 294 471 1045 678 Wheels . | . . . . . . . . . . . . . . . . . . . . Hover . | . . . . . . . . . . . . . . . . . . . . Flight . | . . . . . . . . . . . . . . . . . . . . Fastest Speed 50 | 50 120 120 50 99 97 99 99 99 85 90 93 87 87 86 86 87 87 84 81 Average Speed 97 | 113 120 120 119 105 98 99 99 99 99 92 93 90 87 86 87 87 87 85 85 Slowest Speed 175 | 150 120 120 123 123 99 99 99 99 167 93 93 93 87 87 175 87 90 87 167 Overloaded Moves . | . . . . . . . . . . . . . . . . . . . . Propulsion Burnouts . | . . . . . . . . . . . . . . . . . . . . Robots Hopped 1 | . . . . . . . . . . . . . . 1 . . . . . Potential Cave-ins 2 | . . . . . . . . . . . . . . . . . . 2 . Cave-ins Triggered 2 | . . . . . . . . . . . . 1 . . . . . 1 . Teleports 1 | . . . . . . . . . . . . . . . . 1 . . . Exploration Rate (%) 61 | 4 5 11 92 64 91 92 77 96 26 94 94 91 95 27 68 95 13 81 21 Regions Visited 19 Branch Regions 13 Pre-discovered Areas 30 | . . . 4 2 . . 23 1 . . . . . . . . . . . Known Exits Taken 18 | 1 1 . 1 1 1 1 1 1 1 1 1 1 1 1 1 1 1 1 . Unknown Exits Taken 1 | . . 1 . . . . . . . . . . . . . . . . . Scrap Searched 28 | . . . 8 . 4 4 . 1 . 2 4 . 5 . . . . . . Spaces Dug 79 | . . . . 15 . . . 3 4 1 1 1 . 7 10 . 5 12 20 Terrain Destroyed 79 | . . . . 15 . . . 3 4 1 1 1 . 7 10 . 5 12 20 Melee 79 | . . . . 15 . . . 3 4 1 1 1 . 7 10 . 5 12 20 Projectile . | . . . . . . . . . . . . . . . . . . . . AOE . | . . . . . . . . . . . . . . . . . . . . Terrain Rammed . | . . . . . . . . . . . . . . . . . . . . Walls Destroyed . | . . . . . . . . . . . . . . . . . . . . Machines Disabled . | . . . . . . . . . . . . . . . . . . . . Actions | -11 -10 -10 -8 -6 -6 -6 -6 -5 -5 -5 -5 -5 -4 -4 -4 -4 -3 -3 -2 --------- Run | Yrd Mat Sub Scr Fac Low Low Dat Pro Fac Upp Upp War Pro Fac Arm Lab Res Tes Res Total 19849 | 73 25 230 2088 3453 921 920 168 644 1211 995 1158 765 1154 1428 1271 428 623 1376 918 Wait 2082 | 11 7 23 18 408 141 189 30 10 232 3 102 52 241 107 93 114 59 170 72 Move 16098 | 48 18 198 2026 2857 741 702 115 613 863 918 1021 649 840 1071 933 293 470 1044 678 Hop 1 | . . . . . . . . . . . . . . 1 . . . . . Pick Up 28 | . . 1 3 7 . 1 . . 3 1 . 2 . 3 3 1 1 2 . Fast Attach 136 | 9 . . 18 15 2 1 1 . 14 2 4 10 1 3 24 7 . 8 17 Attach 13 | . . . 1 5 . . . 1 1 1 . . 2 . . 1 . 1 . Detach 6 | . . . 2 1 . . . . . 1 . . . 1 . 1 . . . Swap 25 | . . . . 4 . . . . . . . . 3 3 12 . 1 1 1 Drop 90 | . . . 19 10 1 . 1 . 5 2 3 13 2 3 8 5 1 7 10 Fire 14 | 5 . 4 . 2 . . . . . . . . 1 . 1 . . . 1 Melee 829 | . . . 1 99 16 15 8 11 62 20 14 7 31 165 121 6 50 95 108 Ram . | . . . . . . . . . . . . . . . . . . . . Kick . | . . . . . . . . . . . . . . . . . . . . Crush . | . . . . . . . . . . . . . . . . . . . . Escape Stasis 7 | . . . . . . . . . . . . . . . 3 . . 4 . Rewire 105 | . . . . 1 16 4 . . . 4 3 32 14 13 14 . . . 4 Trap . | . . . . . . . . . . . . . . . . . . . . Miscellaneous 415 | . . 4 . 44 4 8 13 9 31 43 11 . 19 58 59 . 41 44 27 Route ------- -11/Scrapyard -10/Materials -10/Subcaves (discovered 2 exits: *Mat / *Scr) -8/Scraptown (discovered 2 exits: *Fac x2) -6/Factory (discovered 6 exits: *Fac x4 / *Low x2) -6/Lower Caves -6/Lower Caves (discovered 2 exits: *Fac / *Dat) -6/Data Miner -5/Proximity Caves -5/Factory (discovered 4 exits: *Fac x2 / *Upp x2) -5/Upper Caves -5/Upper Caves (discovered 2 exits: *Fac / *War) -5/Warlord -4/Proximity Caves -4/Factory (discovered 7 exits: *Res x3 / Upp / Ext x2 / *Arm) -4/Armory (discovered 3 exits: *Res x2 / *Lab) -4/Lab -3/Research (discovered 5 exits: Res x3 / *Tes x2) -3/Testing -2/Research (discovered 3 exits: *Acc / Qua x2) History --------- Turn | Location | Event 6 | -11/Scrapyard | Upgraded with Propulsion slot (x3) 6 | -11/Scrapyard | Upgraded with Utility slot (x2) 6 | -11/Scrapyard | Upgraded with Weapon slot (x2) 6 | -11/Scrapyard | Identified exit to Materials 6 | -11/Scrapyard | Discovered exit to Materials (range 15) 96 | -11/Scrapyard | Entered Materials 97 | -10/Materials | Met a group of wandering Federalists 114 | -10/Materials | Identified exit to Subcaves 114 | -10/Materials | Discovered exit to Subcaves (range 9) 125 | -10/Materials | Entered Subcaves 125 | -10/Subcaves | Accompanied by 2 allies 126 | -10/Subcaves | Continued accompanying wandering Federalists (3) 126 | -10/Subcaves | Approached by a straggling Scientist 154 | -10/Subcaves | Learned Materials trap positions 273 | -10/Subcaves | Ambushed by Subdweller buried in earth 301 | -10/Subcaves | Identified exit to Materials 301 | -10/Subcaves | Discovered exit to Materials (range 7) 313 | -10/Subcaves | Build established: Hacker-Skirmisher 320 | -10/Subcaves | Visited Clippyterm 324 | -10/Subcaves | Learned Factory stockpile data 324 | -10/Subcaves | Learned Factory garrison access intel 370 | -10/Subcaves | Wandering Federalist uncovered a shortcut to Scraptown 404 | -10/Subcaves | Entered Scraptown 406 | -8/Scraptown | Reached level 2 406 | -8/Scraptown | Reached level 3 410 | -8/Scraptown | Upgraded with Utility slot (x1) 500 | -8/Scraptown | Heard Great Nut preacher, LISTEN AND RECITE! 614 | -8/Scraptown | Identified exit to Factory 614 | -8/Scraptown | Discovered exit to Factory (range 5) 652 | -8/Scraptown | Scanned Subdweller tech in exchange for log data 656 | -8/Scraptown | Learned Factory stockpile data 695 | -8/Scraptown | Visited TADAMA 728 | -8/Scraptown | Visited Red Mages 755 | -8/Scraptown | Visited Cyclists 787 | -8/Scraptown | Visited Bundlers 1131 | -8/Scraptown | Visited Fellowship of the Rings 1168 | -8/Scraptown | Visited UFD Registry 1168 | -8/Scraptown | Registered with UFD as "Quantumsplitter" 1207 | -8/Scraptown | Visited SPCMW 1231 | -8/Scraptown | Visited Comm Corps 1507 | -8/Scraptown | Visited Scrap Suit Storage 1657 | -8/Scraptown | Visited Scrapoid Research Area 1679 | -8/Scraptown | Visited Derelict Rescue Squad 1748 | -8/Scraptown | Visited Sword Containment 1794 | -8/Scraptown | Visited Cartography Club 2028 | -8/Scraptown | Learned location of Recycling (-8) 2028 | -8/Scraptown | Learned location of Lower Caves (-7) 2028 | -8/Scraptown | Learned location of Extension (-4) 2028 | -8/Scraptown | Learned location of Testing (-3) 2028 | -8/Scraptown | Learned 8 Materials zone layouts 2028 | -8/Scraptown | Learned 16 Factory zone layouts 2028 | -8/Scraptown | Learned 24 Factory zone layouts 2028 | -8/Scraptown | Learned 16 Research zone layouts 2028 | -8/Scraptown | Learned 12 Lower Caves zone layouts 2028 | -8/Scraptown | Learned 8 Proximity Caves zone layouts 2028 | -8/Scraptown | Learned 16 Proximity Caves zone layouts 2028 | -8/Scraptown | Learned location of 2 exits from Research 2028 | -8/Scraptown | Learned location of 2 exits from Proximity Caves 2122 | -8/Scraptown | Visited Science Guys 2179 | -8/Scraptown | Discovered exit to Factory (range 13) 2224 | -8/Scraptown | Found Scrap Suit 2345 | -8/Scraptown | Build established: Hacker-Assassin 2349 | -8/Scraptown | Visited Junk Repository 2386 | -8/Scraptown | Visited LU-1G1's Boring Crew 2654 | -8/Scraptown | Build established: Hacker-Gladiator 2797 | -8/Scraptown | Met Optimus 2797 | -8/Scraptown | Reached level 4 2797 | -8/Scraptown | Accepted into 0bPrime 2797 | -8/Scraptown | Upgraded with Utility slot (x1) 2877 | -8/Scraptown | Civil war broke out across Scraptown 2890 | -8/Scraptown | Entered Factory 2891 | -6/Factory | Identified exit to Lower Caves 2892 | -6/Factory | Identified exit to Factory 2892 | -6/Factory | Reached level 5 2892 | -6/Factory | Reached level 6 2892 | -6/Factory | Reached level 7 2892 | -6/Factory | Reached level 8 2892 | -6/Factory | Reached level 9 2892 | -6/Factory | Reached level 10 2892 | -6/Factory | Reached level 11 2892 | -6/Factory | Reached level 12 2892 | -6/Factory | Reached level 13 2892 | -6/Factory | Reached level 14 2894 | -6/Factory | Loaded intel: 2 garrison access locations 2906 | -6/Factory | Upgraded with Power slot (x1) 2906 | -6/Factory | Upgraded with Propulsion slot (x1) 2906 | -6/Factory | Upgraded with Utility slot (x3) 2919 | -6/Factory | Lost 4 allies 3268 | -6/Factory | Fabricated I-36 Angel (x1) 3436 | -6/Factory | Build established: Scientist-Gladiator 3549 | -6/Factory | Repaired Hrd. Medium Armor Plating 3663 | -6/Factory | Loaded intel: 7 recycling unit locations 3767 | -6/Factory | Reached level 15 3787 | -6/Factory | Fabricated L-41 Fighter? 3848 | -6/Factory | Fabricated CPS Tube (x1) 3852 | -6/Factory | Attached CPS modules to Fighter 5a. 3870 | -6/Factory | Attached CPS modules to A-15 Conveyor. 3934 | -6/Factory | Build established: Hacker-Gladiator 4250 | -6/Factory | Learned location of Protoforge (-2) 4598 | -6/Factory | Reached level 16 4626 | -6/Factory | Upgraded with Utility slot (x1) 4831 | -6/Factory | Loaded intel: 102 trap records 4867 | -6/Factory | Learned Extension security intel 4894 | -6/Factory | Learned location of 2 exits from Proximity Caves 4913 | -6/Factory | Learned 2 Hub_04(d) zone layouts 4921 | -6/Factory | Learned location of 2 exits from Upper Caves 4956 | -6/Factory | Fabricated Microactuators (x2) 5007 | -6/Factory | Fabricated Imp. Actuator Array (x2) 5094 | -6/Factory | Fabricated Y-64 Sentinel (x2) 5175 | -6/Factory | Fabricated M-13 Machinist (x1) 5431 | -6/Factory | Reached level 17 5921 | -6/Factory | Spotted B-75 Beast 5945 | -6/Factory | Allies destroyed B-75 Beast 6273 | -6/Factory | Reached level 18 6674 | -6/Factory | Entered Lower Caves 6674 | -6/Lower Caves | Accompanied by 6 allies 6675 | -6/Lower Caves | Identified exit to Lower Caves 6730 | -6/Lower Caves | Learned Armory emergency access door positions 6730 | -6/Lower Caves | Learned Research trap positions 7008 | -6/Lower Caves | Spotted B-75 Beast 7029 | -6/Lower Caves | Destroyed B-75 Beast 7168 | -6/Lower Caves | Encountered a Warlord checkpoint 7271 | -6/Lower Caves | Attacked by a delusional Derelict stockpiling Unaware 7590 | -6/Lower Caves | Build established: Commander-Gladiator 7615 | -6/Lower Caves | Entered another Lower Caves area 7615 | -6/Lower Caves | Accompanied by 10 allies 7617 | -6/Lower Caves | Discovered exit to Factory (range 16) 7655 | -6/Lower Caves | Encountered a Warlord checkpoint 7876 | -6/Lower Caves | Attracted the attention of an 0b10 outpost 7903 | -6/Lower Caves | Reached level 19 8028 | -6/Lower Caves | Core integrity fell below 50% 8153 | -6/Lower Caves | Identified exit to Data Miner 8153 | -6/Lower Caves | Discovered exit to Data Miner (range 17) 8379 | -6/Lower Caves | Learned 12 Factory zone layouts 8553 | -6/Lower Caves | Entered Data Miner 8553 | -6/Data Miner | Accompanied by 9 allies 8553 | -6/Data Miner | Identified exit to Proximity Caves 8553 | -6/Data Miner | Discovered exit to Proximity Caves (range 6) 8572 | -6/Data Miner | Met Data Miner 8594 | -6/Data Miner | Learned location of Section 7 (-2) 8594 | -6/Data Miner | Acquired the access code to Warlord's prototype stash 8611 | -6/Data Miner | Received God Mode back door access code from Data Miner 8626 | -6/Data Miner | Interfaced with the Data Conduit 8679 | -6/Data Miner | Lost 4 allies 8733 | -6/Data Miner | Entered Proximity Caves 8733 | -5/Proximity Caves | Accompanied by 5 allies 8735 | -5/Proximity Caves | Reached level 20 8737 | -5/Proximity Caves | Upgraded with Utility slot (x1) 8929 | -5/Proximity Caves | Build established: Hacker-Gladiator 9000 | -5/Proximity Caves | Spotted B-75 Beast 9013 | -5/Proximity Caves | Destroyed B-75 Beast 9386 | -5/Proximity Caves | Entered Factory 9386 | -5/Factory | Accompanied by 5 allies 9387 | -5/Factory | Identified exit to Upper Caves 9388 | -5/Factory | Reached level 21 9390 | -5/Factory | Loaded intel: 286 machine locations 9393 | -5/Factory | Upgraded with Weapon slot (x1) 9544 | -5/Factory | Fabricated Enh. Flexi-carbon Leg (x1) 9761 | -5/Factory | Reached level 22 9780 | -5/Factory | Upgraded with Weapon slot (x1) 9995 | -5/Factory | Spotted B-75 Beast 9997 | -5/Factory | Allied Derelicts emerged from ambush trap array 10008 | -5/Factory | Destroyed B-75 Beast 10036 | -5/Factory | Loaded intel: 8 recycling unit locations 10052 | -5/Factory | P-70 Sage assimilated allied Angel 5a 10205 | -5/Factory | Cargo convoy interrupted 10246 | -5/Factory | Local machine network offline 10287 | -5/Factory | Identified exit to Factory 10287 | -5/Factory | Discovered exit to Factory (range 11) 10390 | -5/Factory | Found PL-3XN's Ring of Power 10601 | -5/Factory | Intercept squad dispatched 10602 | -5/Factory | Discovered exit to Factory (range 20) 10616 | -5/Factory | Spotted Tracker 10649 | -5/Factory | Destroyed Tracker 10655 | -5/Factory | Found Corrupted Exp. Phase Shifter 10661 | -5/Factory | Spotted Combat Programmer 10665 | -5/Factory | Core integrity fell below 50% 10672 | -5/Factory | Entered Upper Caves 10673 | -5/Upper Caves | Identified exit to Upper Caves 10731 | -5/Upper Caves | Encountered a Warlord checkpoint 11071 | -5/Upper Caves | Attracted the attention of an 0b10 base 11088 | -5/Upper Caves | Reached level 23 11099 | -5/Upper Caves | Learned Extension garrison access intel 11099 | -5/Upper Caves | Learned Factory emergency access door positions 11099 | -5/Upper Caves | Learned 8 Factory zone layouts 11142 | -5/Upper Caves | Learned Factory interactive machine intel 11624 | -5/Upper Caves | Entered another Upper Caves area 11635 | -5/Upper Caves | Found Alien Artifact 11635 | -5/Upper Caves | Identified Dimensional Node Initializer 11635 | -5/Upper Caves | Initialized slip node 11654 | -5/Upper Caves | Learned Factory interactive machine intel 11785 | -5/Upper Caves | Attracted the attention of an 0b10 outpost 12223 | -5/Upper Caves | Encountered a Warlord checkpoint 12224 | -5/Upper Caves | Learned Factory stockpile data 12227 | -5/Upper Caves | Identified exit to Warlord 12227 | -5/Upper Caves | Discovered exit to Warlord (range 11) 12231 | -5/Upper Caves | Learned 4 Factory zone layouts 12727 | -5/Upper Caves | Entered Warlord 12727 | -5/Warlord | Accompanied by 2 allies 12760 | -5/Warlord | System corruption cleaned by Quarantine Array 12993 | -5/Warlord | Visited the Vortex Lab 13004 | -5/Warlord | Found Prototype Energy Gun 13004 | -5/Warlord | Identified Vortex Rifle 13008 | -5/Warlord | Found Prototype Energy Cannon 13008 | -5/Warlord | Identified Vortex Driver 13010 | -5/Warlord | Warlord's base attacked by MAIN.C 13127 | -5/Warlord | Opened Warlord's prototype stash 13140 | -5/Warlord | Found Prototype Hackware 13140 | -5/Warlord | Identified Ghost Barrier 13149 | -5/Warlord | Found Vortex Chain Reactor 13154 | -5/Warlord | Found Thermal Barrier 13166 | -5/Warlord | Found Prototype Device 13166 | -5/Warlord | Identified Minesniffer Drone Bay 13215 | -5/Warlord | Rebuked by Warlord 13354 | -5/Warlord | Opened side exit 13360 | -5/Warlord | Warlord forces counterattacked 13395 | -5/Warlord | Crushed by falling debris 13398 | -5/Warlord | Spotted Executioner 13407 | -5/Warlord | Destroyed Executioner 13417 | -5/Warlord | Found Exp. Core Analyzer 13426 | -5/Warlord | Identified exit to Proximity Caves 13426 | -5/Warlord | Discovered exit to Proximity Caves (range 14) 13439 | -5/Warlord | Entered Proximity Caves 13441 | -4/Proximity Caves | Reached level 24 13566 | -4/Proximity Caves | Received a Behemoth hack from an annoying Tinkerer 13874 | -4/Proximity Caves | Attracted the attention of an 0b10 outpost 13952 | -4/Proximity Caves | Destroyed 9 combat bots 14003 | -4/Proximity Caves | Spotted B-86 Titan 14022 | -4/Proximity Caves | Destroyed B-86 Titan 14249 | -4/Proximity Caves | Attracted the attention of an 0b10 checkpoint 14261 | -4/Proximity Caves | Learned Research trap positions 14525 | -4/Proximity Caves | Entered Factory 14525 | -4/Factory | Accompanied by 2 allies 14526 | -4/Factory | Forged Quantum Companion 14526 | -4/Factory | Reached level 25 14526 | -4/Factory | Identified exit to Research 14526 | -4/Factory | Identified exit to Extension 14526 | -4/Factory | Identified exit to Armory 14527 | -4/Factory | Identified exit to Upper Caves 14530 | -4/Factory | Loaded intel: 260 machine locations 14531 | -4/Factory | Loaded intel: 54 interactive machine locations 14548 | -4/Factory | Loaded intel: 8 recycling unit locations 14549 | -4/Factory | Found Gamma Bomb Array 14588 | -4/Factory | Discovered exit to Research (range 9) 14771 | -4/Factory | P-70 Sage assimilated allied Veteran 7a 14785 | -4/Factory | Core integrity fell below 50% 15001 | -4/Factory | Intercept squad dispatched 15031 | -4/Factory | Spotted Tracker 15038 | -4/Factory | Reached level 26 15038 | -4/Factory | Destroyed Tracker 15038 | -4/Factory | Spotted Tracker 15040 | -4/Factory | Destroyed Tracker 15095 | -4/Factory | Spotted Combat Programmer 15097 | -4/Factory | Destroyed Combat Programmer 15142 | -4/Factory | Spotted Combat Programmer 15485 | -4/Factory | Discovered exit to Extension (range 4) 15528 | -4/Factory | Destroyed Combat Programmer 15534 | -4/Factory | Intercept squad dispatched 15548 | -4/Factory | Spotted Tracker 15548 | -4/Factory | Spotted Tracker 15551 | -4/Factory | Rewired Tracker 15568 | -4/Factory | Spotted Combat Programmer 15581 | -4/Factory | Spotted Combat Programmer 15588 | -4/Factory | Destroyed Combat Programmer 15595 | -4/Factory | Destroyed Combat Programmer 15775 | -4/Factory | First assault squad dispatched 15842 | -4/Factory | Destroyed Tracker 15936 | -4/Factory | Entered Armory 15937 | -4/Armory | Met VL-GR5, who suggested a friendly competition 15938 | -4/Armory | Loaded intel: 100 machine locations 15949 | -4/Armory | Reached level 27 16015 | -4/Armory | Destroyed 8 combat bots 16042 | -4/Armory | Repaired Imp. Shield Generator 16136 | -4/Armory | Discovered exit to Research (range 20) 16153 | -4/Armory | Lost the competition with VL-GR5 16373 | -4/Armory | Fabricated Adv. Actuator Array (x2) 16618 | -4/Armory | Spotted B-86 Titan 16621 | -4/Armory | Befriended a Behemoth using the annoying Tinkerer's hack 16792 | -4/Armory | Loaded intel: 2 recycling unit locations 16865 | -4/Armory | Spotted Armor Guard 16865 | -4/Armory | Spotted Armor Guard 16878 | -4/Armory | Destroyed Armor Guard 16899 | -4/Armory | Destroyed Armor Guard 16918 | -4/Armory | Spotted Armor Guard 16918 | -4/Armory | Spotted Armor Guard 16948 | -4/Armory | Destroyed Armor Guard 16955 | -4/Armory | Destroyed Armor Guard 16973 | -4/Armory | Found PL-3XN's Ring of Power 16979 | -4/Armory | Found Disassembled Obliterator 17007 | -4/Armory | Discovered exit to Research (range 17) 17047 | -4/Armory | Identified exit to Lab 17047 | -4/Armory | Discovered exit to Lab (range 15) 17186 | -4/Armory | First assault squad dispatched 17201 | -4/Armory | Entered Lab 17201 | -4/Lab | Discovered exit to Research (range 9) 17211 | -4/Lab | Hidden lab's door opened automatically 17211 | -4/Lab | Sensor layout match revealed 17212 | -4/Lab | Gained access to the hidden lab's interior 17212 | -4/Lab | Reached level 28 17217 | -4/Lab | Upgraded with Utility slot (x1) 17297 | -4/Lab | Found Alien Artifact 17297 | -4/Lab | Identified Core Regenerator 17297 | -4/Lab | Used Core Regenerator, restored core integrity (+175) 17305 | -4/Lab | Found Alien Artifact 17305 | -4/Lab | Identified Integrated Dissipator 17305 | -4/Lab | Installed Integrated Dissipator, increased core heat dissipation (+20) 17313 | -4/Lab | Found Alien Artifact 17313 | -4/Lab | Identified Transdimensional Reconstructor 17313 | -4/Lab | Warped through subspace 17384 | -4/Lab | Decrypted terminal 17384 | -4/Lab | Acquired modification code for an L2 power cell 17432 | -4/Lab | Found Prototype Protection 17432 | -4/Lab | Identified Med. Regenerative Plating 17435 | -4/Lab | Found Prototype Hackware 17442 | -4/Lab | Found Prototype Energy Cannon 17442 | -4/Lab | Identified Warp Cannon 17447 | -4/Lab | Found Prototype Energy Cannon 17447 | -4/Lab | Identified Potential Cannon 17598 | -4/Lab | Entered Research 17599 | -3/Research | Identified exit to Research 17600 | -3/Research | Identified exit to Testing 17601 | -3/Research | Loaded intel: 100 trap records 17602 | -3/Research | Loaded intel: 122 machine locations 17614 | -3/Research | Identified Quantum Router 17625 | -3/Research | Identified exit to DSF 17771 | -3/Research | Fabricated O-32 Director (x1) 17920 | -3/Research | Build established: Wizard-Gladiator 17924 | -3/Research | Loaded intel: 5 recycling unit locations 17967 | -3/Research | Reached level 29 17971 | -3/Research | Spotted B-86 Titan 17990 | -3/Research | Destroyed B-86 Titan 18103 | -3/Research | Local machine network offline 18203 | -3/Research | Entered Testing 18204 | -3/Testing | Loaded intel: 75 machine locations 18327 | -3/Testing | Crushed by falling debris 18400 | -3/Testing | Fabricated Adv. Force Field (x2) 18457 | -3/Testing | Scanned by Researcher 18583 | -3/Testing | Discovered exit to Research (range 10) 18652 | -3/Testing | Found Prototype Energy Gun 18652 | -3/Testing | Identified Warp Gun 18706 | -3/Testing | Found Prototype Device 18706 | -3/Testing | Identified Adv. Kinecellerator 18878 | -3/Testing | Fabricated Lgt. Regenerative Plating? 18898 | -3/Testing | Found Ghost Barrier 18917 | -3/Testing | Found Exp. Phase Shifter 18956 | -3/Testing | Intercept squad dispatched 18970 | -3/Testing | Spotted Tracker 18975 | -3/Testing | Destroyed Tracker 18976 | -3/Testing | Spotted Tracker 18978 | -3/Testing | Destroyed Tracker 19000 | -3/Testing | Spotted Combat Programmer 19007 | -3/Testing | Destroyed Combat Programmer 19007 | -3/Testing | Spotted Combat Programmer 19028 | -3/Testing | Destroyed Combat Programmer 19247 | -3/Testing | Reached level 30 19362 | -3/Testing | Unchained authorized (6S-H0T) 19522 | -3/Testing | Entered Research 19523 | -2/Research | Identified exit to Access 19524 | -2/Research | Loaded intel: 94 trap records 19525 | -2/Research | Loaded intel: 123 machine locations 19723 | -2/Research | Unchained authorized (6S-H0T) 19736 | -2/Research | Identified exit to Quarantine 19848 | -2/Research | Intercept squad dispatched 19872 | -2/Research | Spotted Tracker 19872 | -2/Research | Spotted Tracker 19890 | -2/Research | Destroyed Tracker 19892 | -2/Research | Spotted Combat Programmer 19914 | -2/Research | Reached level 31 19914 | -2/Research | Destroyed Combat Programmer 19925 | -2/Research | Destroyed Tracker 19938 | -2/Research | Spotted Combat Programmer 19967 | -2/Research | Destroyed Combat Programmer 20036 | -2/Research | Loaded intel: 5 recycling unit locations 20104 | -2/Research | Fabricated Imp. VSS Leg (x2) 20299 | -2/Research | Intercept squad dispatched 20321 | -2/Research | Destroyed 6S-H0T 20323 | -2/Research | Spotted Tracker 20326 | -2/Research | Destroyed Tracker 20327 | -2/Research | Spotted Tracker 20332 | -2/Research | Destroyed Tracker 20362 | -2/Research | Found Prototype Ballistic Gun 20362 | -2/Research | Identified 6S-H0T's Six Shooter 20378 | -2/Research | Spotted Combat Programmer 20387 | -2/Research | Spotted Combat Programmer 20408 | -2/Research | Destroyed Combat Programmer 20414 | -2/Research | Destroyed Combat Programmer 20418 | -2/Research | Core integrity fell below 50% 20431 | -2/Research | Core integrity fell below 20% 20489 | -2/Research | Spotted B-90 Cyclops 20491 | -2/Research | Destroyed by B-90 Cyclops with Nova Cannon Last Messages --------------- Greatsword. 20428_ Acquired Imp. VSS Leg+. 20432_ Med. Regenerative Plating severed. 20435_ K-01 Serf collects debris. 20443_ Exp. Myomer Leg severed. 20443_ Q213-m follow-up attacks with Centrium Greatsword. 20443_ Exp. Myomer Leg severed. 20444_ Acquired Exp. Myomer Leg. 20445_ KIB6P#OL8W/DVR